bitfinex/quotes_ETHUSD_20250324
["timestamp","ask_amount","ask_price","bid_price","bid_amount"]
[1742825915985,3.7797,2103.5,2103.2,5.7]
[1742825916186,4.75465,2103.2,2103.1,0.00648832]
[1742825916388,4.75494,2103.1,2102.9,5.711]
[1742825916591,5.30511,2103.0,2102.9,5.711]
[1742825916940,8.30511,2103.0,2102.9,5.711]
[1742825917187,7.75511,2103.0,2102.9,5.711]
[1742825917392,9.634085,2103.0,2102.9,5.711]
[1742825917558,4.75624,2102.5,2102.4,25.133]
[1742825917762,3.0,2102.5,2102.4,30.865]
[1742825917991,2.01,2102.5,2102.4,25.133]
[1742825918192,2.01,2102.5,2102.4,30.861]
[1742825918397,5.55222,2102.9,2102.4,30.861]
[1742825918691,0.7967,2102.9,2102.4,30.861]
[1742825918863,0.7967,2102.9,2102.4,25.133]
[1742825919057,4.75533,2102.9,2102.5,5.73]
[1742825919261,5.5132,2103.2,2102.5,5.73]
[1742825919468,4.75497,2103.1,2102.5,5.73]
[1742825919661,4.75526,2103.0,2102.5,5.73]
[1742825919884,5.51325,2103.2,2102.5,5.73]
[1742825920081,4.75499,2103.1,2102.5,5.73]
[1742825920261,4.75516,2103.0,2102.5,5.73]
[1742825920461,4.75573,2102.8,2102.5,5.73]
[1742825920874,4.75537,2102.9,2102.5,5.73]
[1742825921200,4.75593,2102.7,2102.5,5.73]
[1742825921388,4.75601,2102.6,2102.5,5.73]
[1742825921565,7.75624,2102.5,2102.4,25.133]
[1742825921761,7.75624,2102.5,2102.4,30.841]
[1742825921995,9.09104,2102.5,2102.4,30.841]
[1742825922496,8.54104,2102.5,2102.4,30.841]
[1742825922668,3.0,2102.5,2102.4,30.841]
[1742825922991,7.75624,2102.5,2102.4,30.841]
[1742825923194,13.84624,2102.5,2102.4,30.841]
[1742825923397,15.42653448,2102.5,2102.4,30.841]
[1742825923578,15.42653448,2102.5,2102.4,5.708]
[1742825923777,15.97653448,2102.5,2102.4,5.708]
[1742825923975,5.13203,2103.5,2102.4,5.855]
[1742825924165,4.75492,2103.1,2102.4,8.855]
[1742825924366,4.75581,2102.7,2102.4,8.855]
[1742825924569,4.75511,2103.0,2102.4,5.855]
[1742825924897,7.75624,2102.5,2102.4,5.855]
[1742825925064,10.322672,2102.5,2102.4,5.855]
[1742825925268,4.7576,2101.9,2101.8,25.136]
[1742825925497,7.7576,2101.9,2101.8,25.136]
[1742825925706,7.7576,2101.9,2101.8,30.992]
[1742825926975,8.3076,2101.9,2101.8,30.992]
[1742825927367,8.3076,2101.9,2101.8,25.136]
[1742825927569,9.690617,2101.9,2101.8,5.841]
[1742825928200,4.75895,2101.3,2101.2,25.138]
[1742825928404,4.76001,2100.9,2100.6,25.142]
[1742825928578,0.55,2101.2,2100.7,5.841]
[1742825928898,3.7676,2101.4,2100.7,5.841]
[1742825929065,9.51956,2101.0,2100.7,5.841]
[1742825929273,4.76009,2100.8,2100.7,5.841]
[1742825929700,8.51009,2100.8,2100.7,5.841]
[1742825930001,3.0,2100.8,2100.7,5.841]
[1742825930501,3.8024,2101.1,2100.7,5.841]
[1742825930889,8.56192,2101.1,2100.7,5.841]
[1742825931094,4.76,2100.9,2100.7,5.841]
[1742825931280,3.0,2101.0,2100.6,25.142]
[1742825931598,7.75963,2101.0,2100.7,5.832]
[1742825931802,3.0,2101.0,2100.7,5.832]
[1742825931967,7.75973,2101.0,2100.7,5.832]
[1742825932172,3.0,2101.0,2100.7,5.832]
[1742825932366,6.09,2101.2,2100.7,5.832]
[1742825933187,0.8002,2101.5,2100.7,5.832]
[1742825933586,6.8892,2101.8,2101.2,4.75912]
[1742825933783,4.75634,2102.5,2101.7,3.0]
[1742825934000,4.75586,2102.7,2102.0,3.0]
[1742825934202,4.75583,2102.7,2102.1,5.83]
[1742825934415,4.75569,2102.8,2102.1,10.58714]
[1742825934708,4.75569,2102.8,2102.1,5.83]
[1742825934709,4.75576,2102.8,2102.1,5.83]
[1742825934906,0.7732,2102.9,2102.1,5.83]
[1742825934907,4.75592,2102.7,2102.1,5.83]
[1742825935204,4.75647,2102.4,2101.8,25.151]
[1742825935399,4.75617,2102.6,2101.9,5.821]
[1742825935591,9.5123,2102.6,2101.9,5.821]
[1742825935809,4.75638,2102.5,2101.9,5.821]
[1742825936008,4.7565,2102.4,2101.9,5.821]
[1742825936206,4.75604,2102.6,2101.9,5.821]
[1742825936440,4.75627,2102.5,2101.9,5.821]
[1742825936592,4.75604,2102.6,2101.9,13.57855]
[1742825936789,4.75559,2102.8,2102.0,4.75736]
[1742825936997,4.75588,2102.7,2102.0,4.75736]
[1742825937193,4.75559,2102.8,2102.1,4.75713]
[1742825937627,4.75527,2103.0,2102.3,7.75657]
[1742825937829,4.75527,2103.0,2102.4,5.799]
[1742825938036,4.7555,2102.9,2102.4,5.799]
[1742825938418,3.0,2103.0,2102.4,5.799]
[1742825938620,7.75511,2103.0,2102.4,5.799]
[1742825938798,4.75534,2102.9,2102.4,5.799]
[1742825938997,4.75553,2102.9,2102.4,5.799]
[1742825939225,4.75553,2102.9,2102.0,3.0]
[1742825939226,4.7562,2102.6,2102.0,3.0]
[1742825939474,4.7562,2102.6,2102.1,5.783]
[1742825939633,4.75567,2102.8,2102.1,5.783]
[1742825939942,3.0,2102.9,2102.1,10.54011]
[1742825940092,4.75491,2103.1,2102.2,4.75681]
[1742825940297,12.50966,2103.2,2102.3,7.75665]
[1742825940530,12.50966,2103.2,2102.3,3.0]
[1742825940531,4.75489,2103.1,2102.3,3.0]
[1742825940799,4.75612,2102.6,2102.4,5.772]
[1742825941099,9.51227,2102.6,2102.5,5.772]
[1742825941305,13.31017,2102.6,2102.5,5.772]
[1742825941508,4.75709,2102.2,2101.8,25.151]
[1742825941737,4.75723,2102.1,2101.9,5.771]
[1742825942042,4.7576,2101.9,2101.1,3.0]
[1742825942200,4.75838,2101.6,2101.2,30.911]
[1742825942394,5.30782,2101.8,2101.2,30.911]
[1742825942591,4.75885,2101.4,2101.3,5.766]
[1742825943060,5.51587,2101.5,2101.3,5.766]
[1742825943612,4.75873,2101.4,2101.3,5.766]
[1742825943860,7.75895,2101.3,2101.1,5.764]
[1742825944007,4.75918,2101.2,2101.1,5.764]
[1742825944334,4.75953,2101.1,2100.6,25.146]
[1742825944537,4.75982,2101.0,2100.7,5.761]
[1742825945536,6.09,2101.2,2100.7,5.761]
[1742825945738,4.75944,2101.1,2100.7,5.761]
[1742825946236,6.09,2101.2,2100.7,8.761]
[1742825946538,10.84927,2101.2,2100.7,5.761]
[1742825946837,7.75977,2101.0,2100.7,5.761]
[1742825947001,3.0,2101.0,2100.7,5.761]
[1742825947207,3.8178,2101.1,2100.7,5.761]
[1742825947412,3.0,2101.1,2100.7,5.761]
[1742825947704,10.84932,2101.2,2100.8,5.765]
[1742825947921,4.75972,2101.0,2100.8,5.765]
[1742825948134,4.7595,2101.1,2100.9,5.762]
[1742825948341,15.60905,2101.1,2100.9,5.762]
[1742825948541,6.09,2101.1,2100.9,5.762]
[1742825949037,6.09,2101.1,2100.6,28.146]
[1742825949226,0.7503,2101.8,2100.9,3.0]
[1742825949427,0.7503,2101.8,2100.9,13.87971]
[1742825949644,0.7503,2101.8,2100.9,9.12]
[1742825949826,6.09,2101.9,2101.1,4.75931]
[1742825950140,6.09,2101.9,2101.2,5.76]
[1742825950456,7.255233,2101.9,2101.2,5.76]
[1742825950609,6.09,2101.9,2101.2,8.76]
[1742825950810,6.09,2101.9,2101.2,13.51901]
[1742825951184,6.09,2102.2,2101.4,4.75862]
[1742825951454,4.75679,2102.3,2101.5,25.153]
[1742825951653,6.400339,2102.3,2101.6,5.756]
[1742825951807,3.0,2102.1,2101.6,5.756]
[1742825952013,4.75776,2101.9,2101.6,5.756]
[1742825952211,4.75805,2101.7,2101.6,5.756]
[1742825952434,7.75827,2101.6,2101.5,25.153]
[1742825952639,5.291142,2101.6,2101.5,30.909]
[1742825952840,10.049412,2101.6,2101.5,30.909]
[1742825953136,6.09,2101.7,2101.5,30.909]
[1742825953438,0.8122,2102.1,2101.5,30.909]
[1742825953739,0.8122,2102.4,2101.5,35.66739]
[1742825953939,6.09,2102.5,2101.8,4.75778]
[1742825954122,0.7953,2102.7,2101.9,5.754]
[1742825954317,3.0,2102.5,2101.9,5.754]
[1742825954516,4.75701,2102.2,2102.0,5.75]
[1742825954820,4.75688,2102.3,2102.0,5.75]
[1742825954821,10.84684,2102.3,2102.0,5.75]
[1742825955018,3.7806,2102.1,2102.0,5.75]
[1742825955209,8.53774,2102.1,2102.0,5.745]
[1742825955611,15.17774,2102.1,2102.0,5.745]
[1742825955811,17.646877,2102.1,2102.0,5.745]
[1742825956010,0.7629,2101.6,2101.4,5.739]
[1742825956212,13.8485,2101.5,2101.4,5.739]
[1742825956842,3.0,2101.4,2100.9,25.149]
[1742825957041,7.75873,2101.4,2101.0,5.733]
[1742825957353,6.09,2101.7,2101.0,5.733]
[1742825957552,3.0,2101.6,2100.9,25.149]
[1742825957711,0.7629,2101.5,2101.1,5.767]
[1742825957914,5.3088,2101.4,2101.2,5.766]
[1742825958219,4.7601,2100.8,2100.1,25.161]
[1742825958425,6.09,2100.8,2100.2,5.779]
[1742825958927,6.09,2100.8,2100.3,5.806]
[1742825959930,3.0,2100.7,2100.3,5.806]
[1742825960525,3.0,2100.7,2100.4,5.788]
[1742825961167,0.8298,2101.0,2100.4,10.54881]
[1742825961326,0.8298,2101.0,2100.4,5.788]
[1742825961844,0.8298,2101.0,2100.4,10.54877]
[1742825962362,6.09,2101.5,2100.4,8.788]
[1742825962524,0.8068,2101.6,2100.8,4.76005]
[1742825962720,6.09,2101.7,2101.0,9.51896]
[1742825963028,5.56442,2101.9,2101.1,30.94]
[1742825963229,0.8068,2101.9,2101.1,35.69938]
[1742825963464,3.8068,2101.9,2101.1,30.94]
[1742825963663,0.8068,2101.9,2101.2,4.75903]
[1742825963856,0.8068,2101.9,2101.1,35.69922]
[1742825964151,3.8068,2101.9,2101.1,30.94]
[1742825964349,3.8068,2101.9,2101.2,5.78]
[1742825964350,4.55596288,2101.9,2101.2,5.78]
[1742825964552,6.25416,2101.9,2101.2,5.78]
[1742825965226,7.75791,2101.8,2101.2,5.78]
[1742825965733,7.75791,2101.8,2101.3,5.771]
[1742825965945,4.75811,2101.7,2101.3,5.771]
[1742825966166,11.100207,2101.8,2101.3,5.771]
[1742825966461,6.09,2101.8,2101.3,10.52995]
[1742825966632,6.09,2101.8,2101.3,5.771]
[1742825967154,6.09,2101.8,2101.3,10.52993]
[1742825967354,6.09,2101.8,2101.3,5.771]
[1742825968260,3.0,2101.7,2101.3,5.771]
[1742825968759,6.09,2101.8,2101.3,5.771]
[1742825969125,0.8238,2101.7,2101.3,5.771]
[1742825969325,0.8238,2101.7,2101.1,25.155]
[1742825969326,7.224854,2101.7,2101.4,5.75]
[1742825969655,3.8238,2101.7,2101.5,5.75]
[1742825969827,3.8238,2101.7,2101.6,5.749]
[1742825970030,3.0,2101.6,2101.1,25.155]
[1742825970225,3.8238,2101.7,2101.2,5.745]
[1742825970670,7.75831,2101.6,2101.2,5.745]
[1742825970831,4.75875,2101.4,2101.1,25.155]
[1742825971026,3.0,2101.5,2101.2,5.736]
[1742825971279,3.8238,2101.7,2101.2,5.736]
[1742825971577,6.09,2100.7,2100.6,7.76054]
[1742825971929,16.27,2100.7,2100.6,7.76054]
[1742825972565,16.27,2100.7,2100.6,13.48954]
[1742825973324,16.27,2100.7,2100.6,5.719]
[1742825973806,16.27,2100.7,2100.3,3.0]
[1742825973956,16.27494,2100.7,2100.6,5.715]
[1742825974157,16.27494,2100.7,2100.3,4.76121]
[1742825974513,16.27494,2100.7,2100.3,7.7612]
[1742825974798,10.18494,2100.7,2100.1,4.76157]
[1742825975001,10.18,2100.6,2100.0,7.76172]
[1742825975203,10.18,2100.6,2100.1,4.76158]
[1742825975360,10.18,2100.6,2100.1,10.46758]
[1742825975697,10.18,2100.6,2100.2,4.76144]
[1742825975904,10.18,2100.6,2100.2,5.699]
[1742825976559,10.18,2100.6,2100.2,10.46033]
[1742825976758,10.18,2100.6,2100.3,5.688]
[1742825977483,10.18,2100.6,2100.4,25.156]
[1742825979214,10.18,2100.6,2100.5,4.76077]
[1742825980000,10.18,2100.6,2100.4,29.91693]
[1742825980191,10.18,2100.6,2100.4,25.156]
[1742825980389,10.18,2100.6,2100.4,29.91699]
[1742825980590,10.18,2100.6,2100.5,25.158]
[1742825980833,10.18,2100.6,2100.5,29.91877]
[1742825981392,10.18,2100.6,2100.5,25.158]
[1742825981796,10.18,2100.6,2100.5,30.803]
[1742825982180,10.18,2100.6,2100.5,30.8]
[1742825982425,10.18,2100.6,2100.5,25.158]
[1742825982581,10.18,2100.6,2100.5,30.797]
[1742825985510,10.18,2100.6,2100.5,30.774]
[1742825986297,10.18,2100.6,2100.5,5.616]
[1742825986503,10.18,2100.6,2100.5,25.159]
[1742825986911,10.18,2100.6,2100.5,29.91977]
[1742825987911,10.18,2100.6,2100.5,38.52377]
[1742825988119,9.46421875,2100.6,2100.5,38.52377]
[1742825988836,9.46421875,2100.6,2100.5,35.51877]
[1742825989984,9.46421875,2100.6,2100.5,30.75]
[1742825990185,9.46421875,2100.6,2100.5,25.159]
[1742825990386,9.46421875,2100.6,2100.5,30.747]
[1742825991793,9.46421875,2100.6,2100.5,25.159]
[1742825991996,10.41113463,2100.6,2100.4,25.158]
[1742825993009,9.46421875,2100.6,2100.4,25.158]
[1742825993202,9.46421875,2100.6,2100.4,29.91887]
[1742825993401,9.46421875,2100.6,2100.5,5.572]
[1742825994420,9.46421875,2100.6,2100.5,10.33277]
[1742825994722,9.46421875,2100.6,2100.5,10.66257]
[1742825995808,9.46421875,2100.6,2100.5,5.572]
[1742825995997,9.46421875,2100.6,2100.5,4.76077]
[1742825996201,9.46421875,2100.6,2100.5,10.64457]
[1742825998540,9.46421875,2100.6,2100.4,26.11591318]
[1742825998747,9.46421875,2100.5,2099.9,0.3298]
[1742825999047,9.46421875,2100.5,2100.1,9.52322]
[1742825999222,9.46421875,2100.5,2100.0,29.91984]
[1742825999602,9.46421875,2100.5,2100.0,34.68149]
[1742825999819,9.46421875,2100.5,2100.1,4.76165]
[1742826000020,10.59382621,2100.5,2100.0,29.91985]
[1742826000239,8.22958108,2100.5,2100.3,4.76122]
[1742826000548,8.22958108,2100.5,2100.1,10.28467]
[1742826000549,0.00494,2100.7,2100.6,4.76054]
[1742826000703,0.01,2101.4,2101.1,4.75925]
[1742826000908,0.01,2101.4,2101.2,30.697]
[1742826001132,0.01,2101.4,2101.2,35.45607]
[1742826001330,0.01,2101.4,2101.3,4.75895]
[1742826001535,0.01,2101.4,2101.2,35.45612]
[1742826001841,0.01,2101.4,2101.3,4.75895]
[1742826002045,0.01,2101.4,2101.2,35.45612]
[1742826002420,0.01,2101.4,2101.2,40.21513]
[1742826002810,0.01,2101.4,2101.3,4.75895]
[1742826003353,0.01,2101.4,2101.2,35.45613]
[1742826003550,0.01,2101.4,2101.3,4.75895]
[1742826003915,0.01,2101.4,2101.2,30.697]
[1742826004118,0.01,2101.4,2101.3,5.51]
[1742826004853,0.01,2101.4,2101.2,25.159]
[1742826005053,2.2533,2101.4,2101.2,25.159]
[1742826005257,0.9343,2101.4,2101.3,5.503]
[1742826005751,1.00025,2100.7,2100.6,4.76054]
[1742826006055,1.00025,2100.7,2100.6,25.155]
[1742826007159,1.00025,2100.7,2100.6,35.41554]
[1742826007546,1.00025,2100.7,2100.6,30.655]
[1742826008452,1.93555,2100.7,2100.6,25.155]
[1742826008657,1.00025,2100.7,2100.6,30.641]
[1742826010053,7.09025,2100.7,2100.6,25.155]
[1742826010255,7.09025,2100.7,2100.6,35.40754]
[1742826010552,5.27960509,2100.7,2100.6,35.40754]
[1742826011337,5.27960509,2100.7,2100.6,30.647]
[1742826012566,6.13940509,2100.7,2100.6,30.639]
[1742826013463,3.47913715,2100.2,2099.8,4.09319107]
[1742826013763,3.47913715,2100.1,2099.9,25.156]
[1742826014870,3.47913715,2100.0,2099.9,25.156]
[1742826015057,3.47913715,2100.0,2099.9,30.63]
[1742826015557,3.47913715,2100.0,2099.9,30.623]
[1742826016668,3.47913715,2100.0,2099.9,30.613]
[1742826016867,3.47913715,2100.0,2099.0,3.0]
[1742826017090,0.908,2099.8,2099.1,30.619]
[1742826017366,0.9067,2099.6,2099.2,30.621]
[1742826017669,11.0867,2099.6,2099.3,5.461]
[1742826018441,3.47913715,2098.8,2098.5,0.72656963]
[1742826018641,3.47913715,2098.8,2098.6,30.615]
[1742826019452,3.47913715,2098.8,2098.7,5.449]
[1742826020338,0.8538,2099.3,2098.7,5.449]
[1742826020541,0.8538,2099.3,2098.8,5.455]
[1742826022156,6.09,2099.2,2098.6,25.162]
[1742826022356,6.09,2099.2,2099.0,0.4587]
[1742826022556,1.04671875,2099.1,2099.0,6.4587]
[1742826022873,1.04671875,2099.1,2099.0,23.615727]
[1742826022874,7.13671875,2099.1,2099.0,23.615727]
[1742826023081,7.13671875,2099.1,2099.0,11.2257]
[1742826023276,7.13671875,2099.1,2099.0,0.4587]
[1742826023474,7.13671875,2099.1,2099.0,5.446]
[1742826025157,7.13671875,2099.1,2098.8,4.768]
[1742826025453,7.13671875,2099.1,2098.9,5.448]
[1742826025664,7.13671875,2099.1,2098.6,25.162]
[1742826025854,7.13671875,2099.1,2098.7,5.447]
[1742826026256,6.09,2099.0,2098.7,5.447]
[1742826027253,1.0258,2098.9,2098.7,5.447]
[1742826027448,6.09,2099.0,2098.7,5.9057]
[1742826027752,6.09,2098.8,2098.7,10.6737]
[1742826028385,7.13671875,2099.1,2098.8,4.76462]
[1742826028576,7.13671875,2099.1,2099.0,4.76417]
[1742826029493,8.75e-06,2099.1,2099.0,31.793532]
[1742826029796,8.75e-06,2099.4,2099.3,4.76349]
[1742826030087,1.0444,2099.7,2099.3,5.452]
[1742826030247,8.75e-06,2099.6,2099.3,5.452]
[1742826030451,1.0444,2099.5,2099.3,5.452]
[1742826030983,1.0063,2099.0,2098.6,25.888535]
[1742826031186,8.75e-06,2098.9,2098.7,5.454]
[1742826031392,8.75e-06,2098.9,2098.6,30.653505]
[1742826031573,8.75e-06,2098.9,2098.7,5.461]
[1742826031884,8.75e-06,2098.9,2098.8,0.14591084]
[1742826032085,8.75e-06,2098.9,2098.8,4.91053084]
[1742826032386,8.75e-06,2098.9,2098.8,4.76462]
[1742826032556,8.75e-06,2098.9,2098.8,4.90354848]
[1742826032755,8.75e-06,2098.9,2098.8,0.13892848]
[1742826033156,8.75e-06,2098.9,2098.7,5.461]
[1742826033386,8.75e-06,2098.9,2098.8,0.13876794]
[1742826033706,8.75e-06,2098.9,2098.8,5.465]
[1742826034006,1.06700875,2098.9,2098.8,5.60376794]
[1742826034399,1.06700875,2098.9,2098.8,0.13876794]
[1742826034711,1.06700875,2098.9,2098.8,5.461]
[1742826035020,1.06700875,2098.9,2098.8,5.58843348]
[1742826036289,1.067,2098.9,2098.8,5.58242473]
[1742826037203,1.067,2098.9,2098.8,10.34704473]
[1742826037596,1.067,2098.9,2098.8,5.58242473]
[1742826039010,1.067,2098.9,2098.8,0.12742473]
[1742826039306,1.067,2098.9,2098.8,5.45]
[1742826039476,1.067,2098.9,2098.8,5.56855397]
[1742826040979,1.0883,2099.2,2098.8,5.56855397]
[1742826041182,6.09,2099.1,2098.9,4.76439]
[1742826041705,6.09,2099.1,2099.0,4.88193519]
[1742826042276,6.09,2099.4,2099.3,4.76349]
[1742826042493,6.09,2099.8,2099.7,4.76258]
[1742826042807,1.076,2100.2,2099.7,4.76258]
[1742826042808,1.076,2100.2,2099.8,4.76222]
[1742826043008,6.09,2100.1,2099.7,30.74038142]
[1742826043176,6.09,2100.1,2100.0,4.7619]
[1742826043580,6.09,2100.1,2100.0,4.87409932]
[1742826043789,7.0976,2100.5,2100.2,4.76134]
[1742826044085,7.0976,2100.5,2100.3,5.55253155]
[1742826045391,7.97602152,2100.5,2100.3,5.55253155]
[1742826046376,7.0976,2100.5,2100.3,5.55253155]
[1742826047021,4.5695,2100.4,2100.3,0.10953155]
[1742826047216,4.5695,2100.4,2100.3,5.53153155]
[1742826047518,4.5695,2100.4,2100.3,5.53849784]
[1742826047921,4.5695,2100.4,2099.7,25.179]
[1742826047922,5.97350216,2099.9,2099.7,29.94154]
[1742826048219,5.97350216,2099.8,2099.7,29.94158]
[1742826048438,5.97350216,2099.8,2099.7,25.179]
[1742826049014,8.97350216,2099.8,2099.7,25.179]
[1742826049327,9.97671238,2099.8,2099.7,30.585]
[1742826050117,10.96991238,2099.8,2099.7,30.585]
[1742826050629,10.96991238,2099.8,2098.8,4.76444]
[1742826050630,0.55,2099.6,2098.8,4.76444]
[1742826050831,5.97350216,2099.5,2098.9,10.16029]
[1742826051010,3.0,2099.4,2098.9,5.396]
[1742826051209,0.9995,2099.3,2098.9,5.396]
[1742826052328,0.9995,2099.3,2098.8,25.173]
[1742826052329,1.0590551,2099.3,2098.8,25.173]
[1742826052848,4.0590551,2099.3,2098.9,5.386]
[1742826053142,3.9995,2099.3,2098.9,5.386]
[1742826054104,3.9995,2099.3,2098.9,10.15036]
[1742826054326,3.9995,2099.3,2098.9,5.386]
[1742826054327,0.9995,2099.3,2098.9,5.386]
[1742826054929,2.05180022,2099.3,2098.9,5.386]
[1742826055133,2.05180022,2099.3,2098.8,25.173]
[1742826055314,2.05180022,2099.3,2098.9,5.367]
[1742826056004,0.9995,2099.3,2098.9,5.367]
[1742826056206,0.9995,2099.3,2098.9,10.13135]
[1742826056424,0.9995,2099.3,2098.9,5.367]
[1742826056937,5.97350216,2099.2,2098.9,5.367]
[1742826057304,5.97350216,2099.2,2099.0,4.76417]
[1742826057512,2.16e-06,2099.1,2099.0,5.52557]
[1742826057911,4.76054,2100.6,2099.0,5.52557]
[1742826057912,2.16e-06,2099.7,2099.6,4.76281]
[1742826058134,2.16e-06,2099.7,2099.6,35.32481]
[1742826060535,2.16e-06,2099.9,2099.8,4.76235]
[1742826061758,2.16e-06,2099.9,2099.6,25.177]
[1742826061931,2.16e-06,2099.9,2099.7,5.377]
[1742826062102,1.11890216,2099.8,2099.7,5.377]
[1742826062820,2.16e-06,2099.8,2099.7,5.377]
[1742826063217,1.16230216,2099.8,2099.7,5.377]
[1742826063515,2.16e-06,2099.8,2099.7,5.377]
[1742826064540,2.16e-06,2099.8,2099.6,25.177]
[1742826064741,2.16e-06,2099.8,2099.7,5.375]
[1742826065137,0.94742938,2099.8,2099.7,5.375]
[1742826065657,9.40518216,2099.7,2099.6,25.177]
[1742826065860,9.41468216,2099.7,2099.6,25.177]
[1742826066148,9.41468216,2099.7,2098.6,0.726535]
[1742826066149,4.6521,2099.5,2099.0,25.173]
[1742826066322,4.6521,2099.3,2099.0,25.173]
[1742826066520,1.6521,2099.3,2099.0,25.173]
[1742826066717,1.6521,2099.3,2099.1,5.367]
[1742826066922,2.59362722,2099.3,2099.1,5.367]
[1742826067518,1.6521,2099.3,2099.1,5.367]
[1742826068141,1.1021,2099.3,2099.1,5.367]
[1742826068543,1.1021,2099.3,2099.1,10.13083]
[1742826068843,2.16e-06,2099.4,2099.2,4.76358]
[1742826069029,2.16e-06,2099.4,2099.3,4.76349]
[1742826070209,2.16e-06,2099.8,2099.7,4.76258]
[1742826070541,2.16e-06,2100.1,2100.0,8.5233]
[1742826070741,2.16e-06,2100.1,2100.0,39.0763]
[1742826070944,2.16e-06,2100.6,2100.5,4.76077]
[1742826071146,2.16e-06,2100.6,2100.5,10.13777]
[1742826071352,2.16e-06,2100.6,2100.5,5.377]
[1742826072231,2.16e-06,2100.6,2100.5,5.371]
[1742826072630,1.16430216,2100.6,2100.5,5.371]
[1742826072929,2.30674738,2100.6,2100.5,5.367]
[1742826073258,2.16e-06,2100.6,2100.5,10.12777]
[1742826073420,2.16e-06,2100.6,2100.5,5.367]
[1742826074151,2.16e-06,2100.6,2100.5,10.12777]
[1742826075757,2.16e-06,2100.6,2100.5,5.367]
[1742826076216,2.16e-06,2100.6,2100.5,5.351]
[1742826076618,2.16e-06,2100.6,2100.0,30.66274065]
[1742826076819,2.16e-06,2100.5,2100.1,5.347]
[1742826077049,2.16e-06,2100.5,2100.3,4.76112]
[1742826077429,1.0807,2101.0,2100.5,4.76058]
[1742826077636,6.09,2100.9,2100.6,5.347]
[1742826077949,6.09,2100.6,2100.1,4.76147]
[1742826078254,1.0807,2100.5,2100.1,4.76147]
[1742826078559,6.09,2100.4,2100.3,4.76122]
[1742826079232,6.09,2100.4,2100.3,10.10522]
[1742826079731,6.09,2100.4,2100.3,5.344]
[1742826079932,6.09,2100.4,2100.3,10.10522]
[1742826080931,6.09,2100.4,2100.3,5.344]
[1742826081132,6.09,2100.4,2100.0,25.90105065]
[1742826081459,0.55,2100.2,2100.0,25.90105065]
[1742826081649,1.1011,2100.1,2100.0,25.90105065]
[1742826081845,9.41277,2100.1,2100.0,0.72605065]
[1742826082168,9.41277,2100.1,2099.4,25.164]
[1742826082169,3.55,2099.5,2099.4,25.164]
[1742826082356,3.55,2099.5,2099.4,30.527]
[1742826083069,3.0,2099.5,2099.4,30.527]
[1742826083652,3.55,2099.5,2099.4,30.527]
[1742826083852,4.491391,2099.5,2099.4,30.527]
[1742826084161,4.491391,2099.5,2099.4,25.164]
[1742826084459,4.491391,2099.5,2099.4,30.509]
[1742826085528,8.31335,2099.4,2098.8,0.96897321]
[1742826085870,1.1958,2099.3,2098.9,35.27037]
[1742826086283,6.09,2099.4,2099.0,0.817]
[1742826086457,6.09,2099.4,2099.3,4.76349]
[1742826086653,6.09,2100.0,2099.4,4.76312]
[1742826086877,0.66853994,2099.9,2099.3,5.365]
[1742826087042,0.55,2099.6,2099.3,5.365]
[1742826087375,0.55,2099.6,2098.9,29.93234]
[1742826087376,6.09,2099.3,2098.9,25.168]
[1742826087543,7.1924,2099.3,2098.9,25.168]
[1742826088253,6.64,2099.2,2098.9,25.168]
[1742826088444,1.2041,2099.0,2098.9,25.168]
[1742826088645,1.2041,2099.0,2098.9,30.528]
[1742826089265,6.09,2099.2,2098.9,30.528]
[1742826089478,6.09,2099.2,2098.9,25.168]
[1742826089701,6.09,2099.2,2099.0,10.12999]
[1742826089979,6.09,2099.2,2099.1,4.76394]
[1742826090150,6.09,2099.2,2099.1,5.58094]
[1742826090346,6.09,2099.2,2099.0,10.12999]
[1742826090564,6.09,2099.2,2099.1,4.76394]
[1742826090764,6.09,2099.5,2099.3,4.7634]
[1742826091077,6.09,2099.8,2099.4,5.363]
[1742826091443,6.09,2099.8,2099.3,4.76337]
[1742826091659,0.55,2099.3,2099.2,5.389]
[1742826091871,1.6641,2099.3,2098.9,25.168]
[1742826092073,3.55,2099.1,2098.9,25.30117294]
[1742826092482,8.31404,2099.1,2098.9,25.30117294]
[1742826092682,1.86374299,2099.0,2098.9,25.30117294]
[1742826092982,5.78828519,2098.7,2098.4,25.174]
[1742826093285,6.88198519,2098.6,2098.5,5.386]
[1742826093748,5.78828519,2098.6,2098.5,5.386]
[1742826094358,5.78828519,2098.6,2098.5,10.1513]
[1742826094571,5.78828519,2098.6,2097.9,0.15385378]
[1742826094572,6.36711371,2098.6,2097.9,0.15385378]
[1742826094775,3.0,2098.4,2098.0,5.434]
[1742826094983,5.78828519,2098.3,2098.0,5.434]
[1742826095485,5.78828519,2098.3,2098.1,25.177]